fUSD/lending_fUSD_20240929
["ID","MTS","AMOUNT","RATE_DAILY","PERIOD"]
[339486671,1727631045787,-3457.89,0.00010958,2]
[339486672,1727631045797,-500.0,0.00010958,2]
[339486673,1727631045810,-500.63563093,0.00010958,2]
[339486674,1727631045822,-500.0,0.00010958,2]
[339486675,1727631045832,-500.0,0.00010958,2]
[339486676,1727631045844,-500.0,0.00010958,2]
[339486677,1727631045854,-500.0,0.00010958,2]
[339486678,1727631045865,-281.55099422,0.00010958,2]
[339486679,1727631045876,-500.0,0.00010958,2]
[339486680,1727631045886,-500.0,0.00010958,2]
[339486681,1727631045896,-500.0,0.00010958,2]
[339486682,1727631045908,-3850.08,0.00010958,2]
[339486683,1727631045918,-3850.08,0.00010958,2]
[339486684,1727631045929,-3850.08,0.00010958,2]
[339486685,1727631045940,-525.2,0.00010958,2]
[339486686,1727631045952,-3850.08,0.00010958,2]
[339486687,1727631045964,-500.0,0.00010958,2]
[339486688,1727631045975,-3850.08,0.00010958,2]
[339486689,1727631045986,-500.0,0.00010958,2]
[339486690,1727631045997,-500.0,0.00010958,2]
[339486691,1727631046009,-500.0,0.00010958,2]
[339486692,1727631046020,-500.0,0.00010958,2]
[339486693,1727631046031,-500.0,0.00010958,2]
[339486694,1727631046042,-500.0,0.00010958,2]
[339486695,1727631046053,-500.0,0.00010958,2]
[339486696,1727631046063,-500.0,0.00010958,2]
[339486698,1727631046076,-500.0,0.00010958,2]
[339486700,1727631046087,-500.0,0.00010958,2]
[339486703,1727631046098,-500.0,0.00010958,2]
[339486705,1727631046108,-500.0,0.00010958,2]
[339486707,1727631046121,-500.0,0.00010958,2]
[339486708,1727631046133,-500.0,0.00010958,2]
[339486709,1727631046146,-500.0,0.00010958,2]
[339486711,1727631046156,-500.0,0.00010958,2]
[339486712,1727631046167,-500.0,0.00010958,2]
[339486714,1727631046178,-500.0,0.00010958,2]
[339486715,1727631046188,-500.0,0.00010958,2]
[339486716,1727631046198,-500.78921429,0.00010958,2]
[339486717,1727631046208,-771.81,0.00010958,2]
[339486719,1727631046220,-771.81,0.00010958,2]
[339486721,1727631046229,-771.81,0.00010958,2]
[339486723,1727631046240,-771.81,0.00010958,2]
[339486725,1727631046252,-771.81,0.00010958,2]
[339486727,1727631046263,-500.46274773,0.00010958,2]
[339486729,1727631046274,-6997.38,0.00010958,2]
[339486730,1727631046285,-6997.38,0.00010958,2]
[339486731,1727631046296,-6997.38,0.00010958,2]
[339486732,1727631046307,-500.59399695,0.00010958,2]
[339486733,1727631046319,-596.50150183,0.00010958,2]
[339486734,1727631046331,-500.51744394,0.00010958,2]
[339486735,1727631046343,-500.0,0.00010958,2]
[339486736,1727631046354,-200.0,0.00010959,2]
[339486737,1727631046367,-165.58,0.00010959,2]
[339486738,1727631046379,-1189.15,0.00010959,2]
[339486740,1727631046389,-151.78,0.00010959,2]
[339486742,1727631046399,-250.0,0.00010959,2]
[339486743,1727631046409,-2000.0,0.00010959,2]
[339486744,1727631046418,-250.0,0.00010959,2]
[339486745,1727631046428,-501.57163934,0.00010973,2]
[339486747,1727631046440,-161.31802216,0.00010973,2]
[339486750,1727631046451,-500.0,0.00010973,2]
[339486752,1727631046463,-306.44469223,0.00010973,2]
[339486754,1727631046475,-150.0,0.00010976,2]
[339486756,1727631046486,-196.88204439,0.00010984,2]
[339486758,1727631046495,-177.500388,0.00010984,2]
[339486760,1727631046505,-196.88204439,0.00010986,2]
[339486762,1727631046516,-159.45482597,0.00010986,2]
[339486765,1727631046528,-500.0,0.00010987,2]
[339486767,1727631046538,-500.0,0.00010987,2]
[339486769,1727631046548,-500.0,0.00010987,2]
[339486771,1727631046560,-500.0,0.00010987,2]
[339486773,1727631046572,-500.0,0.00010987,2]
[339486776,1727631046582,-500.0,0.00010987,2]
[339486778,1727631046592,-500.0,0.00010987,2]
[339486780,1727631046601,-500.0,0.00010987,2]
[339486781,1727631046611,-500.0,0.00010987,2]
[339486784,1727631046621,-500.0,0.00010987,2]
[339486786,1727631046632,-500.0,0.00010987,2]
[339486788,1727631046642,-500.0,0.00010987,2]
[339486790,1727631046652,-871.61,0.00010987,2]
[339486792,1727631046662,-871.61,0.00010987,2]
[339486794,1727631046672,-500.0,0.00010987,2]
[339486796,1727631046682,-500.0,0.00010987,2]
[339486798,1727631046692,-3457.89,0.00010987,2]
[339486800,1727631046702,-3457.89,0.00010987,2]
[339486801,1727631046712,-500.0,0.00010987,2]
[339486802,1727631046723,-500.0,0.00010987,2]
[339486803,1727631046733,-3850.08,0.00010987,2]
[339486804,1727631046743,-3850.08,0.00010987,2]
[339486805,1727631046753,-500.0,0.00010987,2]
[339486806,1727631046763,-500.0,0.00010987,2]
[339486807,1727631046773,-500.0,0.00010987,2]
[339486808,1727631046784,-771.81,0.00010987,2]
[339486809,1727631046795,-2181.92,0.00010988,2]
[339486810,1727631046808,-500.0,0.00010988,2]
[339486811,1727631046818,-1813.43,0.00010988,2]
[339486812,1727631046830,-3419.91,0.00010988,2]
[339486813,1727631046840,-3069.78,0.00010988,2]
[339486814,1727631046850,-3237.7,0.00010988,2]
[339486815,1727631046863,-848.26,0.00010988,2]
[339486816,1727631046874,-2281.2,0.00010988,2]
[339486817,1727631046884,-2355.98,0.00010988,2]
[339486818,1727631046895,-500.0,0.00010988,2]
[339486819,1727631046905,-1359.01,0.00010988,2]
[339486820,1727631046915,-681.53,0.00010988,2]
[339486821,1727631046926,-1025.7,0.00010988,2]
[339486822,1727631046936,-3651.65,0.00010988,2]
[339486823,1727631046946,-501.28,0.00010988,2]
[339486824,1727631046955,-5054.8,0.00010988,2]
[339486825,1727631046965,-878.84,0.00010988,2]
[339486826,1727631046975,-902.17,0.00010988,2]
[339486827,1727631046986,-500.0,0.00010988,2]
[339486828,1727631046996,-500.0,0.00010988,2]
[339486829,1727631047006,-1080.79,0.00010988,2]
[339486830,1727631047016,-1016.25,0.00010988,2]
[339486831,1727631047026,-704.5,0.00010988,2]
[339486832,1727631047036,-714.91,0.00010988,2]
[339486833,1727631047046,-1242.09,0.00010988,2]
[339486834,1727631047057,-3426.55,0.00010988,2]
[339486835,1727631047066,-500.0,0.00010988,2]
[339486836,1727631047076,-513.59,0.00010988,2]
[339486837,1727631047086,-500.0,0.00010988,2]
[339486838,1727631047096,-1653.15,0.00010988,2]
[339486839,1727631047109,-2354.51,0.00010988,2]
[339486840,1727631047119,-500.0,0.00010988,2]
[339486841,1727631047129,-764.96,0.00010988,2]
[339486842,1727631047140,-1219.95,0.00010988,2]
[339486843,1727631047151,-500.0,0.00010988,2]
[339486844,1727631047163,-1189.98,0.00010988,2]
[339486845,1727631047173,-514.94,0.00010988,2]
[339486846,1727631047183,-661.82,0.00010988,2]
[339486847,1727631047193,-500.0,0.00010988,2]
[339486848,1727631047204,-500.0,0.00010988,2]
[339486849,1727631047214,-1400.93,0.00010988,2]
[339486850,1727631047224,-500.0,0.00010988,2]
[339486851,1727631047235,-500.0,0.00010988,2]
[339486852,1727631047245,-1272.23,0.00010988,2]
[339486853,1727631047256,-206.74981506,0.00010991,2]
[339486854,1727631047266,-1375.32,0.00010992,2]
[339486855,1727631047277,-3259.0,0.00010992,2]
[339486856,1727631047287,-3621.32,0.00010992,2]
[339486857,1727631047298,-3868.12,0.00010992,2]
[339486858,1727631047309,-871.61,0.00010992,2]
[339486859,1727631047319,-1599.48,0.00010992,2]
[339486860,1727631047331,-500.0,0.00010992,2]
[339486861,1727631047342,-3457.89,0.00010992,2]
[339486862,1727631047352,-500.0,0.00010992,2]
[339486863,1727631047363,-3850.08,0.00010992,2]
[339486864,1727631047373,-500.0,0.00010992,2]
[339486865,1727631047384,-500.0,0.00010992,2]
[339486866,1727631047394,-500.0,0.00010993,2]
[339486867,1727631047405,-500.0,0.00010993,2]
[339486868,1727631047415,-954.27,0.00010993,2]
[339486869,1727631047426,-5347.64,0.00010993,2]
[339486870,1727631047436,-500.0,0.00010993,2]
[339486871,1727631047447,-1700.48,0.00010993,2]
[339486872,1727631047457,-500.0,0.00010993,2]
[339486873,1727631047468,-500.0,0.00010993,2]
[339486874,1727631047478,-1448.45,0.00010993,2]
[339486875,1727631047489,-500.0,0.00010993,2]
[339486876,1727631047500,-500.0,0.00010993,2]
[339486877,1727631047510,-500.0,0.00010993,2]
[339486878,1727631047520,-1038.26,0.00010993,2]
[339486879,1727631047531,-500.0,0.00010993,2]
[339486880,1727631047541,-500.0,0.00010993,2]
[339486881,1727631047552,-1757.71,0.00010993,2]
[339486882,1727631047563,-500.0,0.00010993,2]
[339486883,1727631047574,-500.0,0.00010993,2]
[339486884,1727631047585,-500.0,0.00010993,2]
[339486885,1727631047595,-500.0,0.00010993,2]
[339486886,1727631047605,-500.0,0.00010993,2]
[339486887,1727631047616,-896.1,0.00010993,2]
[339486888,1727631047627,-500.0,0.00010993,2]
[339486889,1727631047638,-500.0,0.00010993,2]
[339486890,1727631047648,-500.0,0.00010993,2]
[339486891,1727631047659,-485.80960678,0.00010993,2]
[339486892,1727631047670,-500.0,0.00010993,2]
[339486893,1727631047680,-500.0,0.00010993,2]
[339486894,1727631047690,-500.0,0.00010993,2]
[339486895,1727631047701,-944.49,0.00010993,2]
[339486896,1727631047711,-500.0,0.00010993,2]
[339486897,1727631047721,-500.0,0.00010993,2]
[339486898,1727631047732,-233.29,0.00010993,2]
[339486899,1727631047742,-500.0,0.00010993,2]
[339486901,1727631047752,-1267.15,0.00010993,2]
[339486903,1727631047763,-500.0,0.00010993,2]
[339486905,1727631047773,-3511.28,0.00010993,2]
[339486907,1727631047784,-500.0,0.00010993,2]
[339486909,1727631047795,-500.0,0.00010993,2]
[339486911,1727631047812,-1226.11,0.00010993,2]
[339486914,1727631047824,-500.0,0.00010993,2]
[339486916,1727631047835,-857.43,0.00010993,2]
[339486918,1727631047845,-500.0,0.00010993,2]
[339486920,1727631047856,-500.0,0.00010993,2]
[339486922,1727631047866,-500.0,0.00010993,2]
[339486924,1727631047877,-3857.66,0.00010993,2]
[339486926,1727631047888,-2658.75,0.00010993,2]
[339486928,1727631047899,-1369.26,0.00010993,2]
[339486931,1727631047910,-500.0,0.00010993,2]
[339486932,1727631047920,-500.0,0.00010993,2]
[339486934,1727631047931,-500.0,0.00010993,2]
[339486936,1727631047941,-3552.56,0.00010993,2]
[339486939,1727631047953,-640.25,0.00010993,2]
[339486941,1727631047964,-1453.22,0.00010993,2]
[339486943,1727631047974,-500.0,0.00010993,2]
[339486944,1727631047985,-877.13,0.00010993,2]
[339486945,1727631047995,-1296.02,0.00010993,2]
[339486946,1727631048009,-6509.18,0.00010993,2]
[339486947,1727631048019,-1375.32,0.00010993,2]
[339486948,1727631048030,-1375.32,0.00010993,2]
[339486949,1727631048041,-515.04509073,0.00010993,2]
[339486950,1727631048051,-500.0,0.00010993,2]
[339486951,1727631048061,-500.0,0.00010993,2]
[339486952,1727631048072,-500.0,0.00010993,2]
[339486953,1727631048083,-4934.96,0.00010993,2]
[339486954,1727631048093,-500.0,0.00010993,2]
[339486955,1727631048103,-3259.0,0.00010993,2]
[339486956,1727631048113,-3259.0,0.00010993,2]
[339486957,1727631048124,-500.0,0.00010993,2]
[339486958,1727631048133,-500.0,0.00010993,2]
[339486959,1727631048143,-500.92993208,0.00010993,2]
[339486960,1727631048154,-3621.32,0.00010993,2]
[339486961,1727631048165,-3621.32,0.00010993,2]
[339486962,1727631048176,-500.0,0.00010993,2]
[339486963,1727631048186,-500.0,0.00010993,2]
[339486964,1727631048196,-500.0,0.00010993,2]
[339486965,1727631048207,-3868.12,0.00010993,2]
[339486966,1727631048217,-3868.12,0.00010993,2]
[339486967,1727631048227,-500.0,0.00010993,2]
[339486968,1727631048239,-493.00736424,0.00010993,2]
[339486969,1727631048249,-500.0,0.00010993,2]
[339486970,1727631048259,-500.0,0.00010993,2]
[339486971,1727631048269,-500.35539363,0.00010993,2]
[339486972,1727631048280,-500.0,0.00010993,2]
[339486973,1727631048290,-501.30718946,0.00010993,2]
[339486974,1727631048300,-500.0,0.00010993,2]
[339486975,1727631048310,-500.0,0.00010993,2]
[339486976,1727631048321,-500.0,0.00010993,2]
[339486977,1727631048332,-500.0,0.00010993,2]
[339486978,1727631048342,-500.0,0.00010993,2]
[339486979,1727631048353,-500.0,0.00010993,2]
[339486980,1727631048364,-501.07876523,0.00010993,2]
[339486981,1727631048374,-2597.39,0.00010993,2]
[339486982,1727631048385,-314.22086143,0.00010993,2]
[339486983,1727631048395,-4782.77,0.00010993,2]
[339486984,1727631048406,-500.0,0.00010993,2]
[339486985,1727631048417,-500.0,0.00010993,2]
[339486986,1727631048427,-500.0,0.00010993,2]
[339486987,1727631048437,-4465.88,0.00010993,2]
[339486988,1727631048447,-234.84447308,0.00010993,2]
[339486989,1727631048458,-500.0,0.00010993,2]
[339486990,1727631048468,-500.0,0.00010993,2]
[339486991,1727631048479,-1647.0,0.00010993,2]
[339486992,1727631048489,-500.0,0.00010993,2]
[339486993,1727631048499,-500.50095822,0.00010993,2]
[339486994,1727631048510,-6050.66,0.00010993,2]
[339486995,1727631048521,-633.45150998,0.00010993,2]
[339486996,1727631048531,-951.33,0.00010993,2]
[339486997,1727631048542,-500.0,0.00010993,2]
[339486998,1727631048551,-500.35319423,0.00010993,2]
[339486999,1727631048562,-500.39528249,0.00010993,2]
[339487000,1727631048572,-500.0,0.00010993,2]
[339487001,1727631048582,-3060.08,0.00010993,2]
[339487002,1727631048593,-500.0,0.00010993,2]
[339487003,1727631048603,-500.81607787,0.00010993,2]
[339487004,1727631048613,-500.0,0.00010993,2]
[339487005,1727631048624,-501.28005096,0.00010993,2]
[339487006,1727631048634,-2365.41,0.00010993,2]
[339487007,1727631048645,-500.56095245,0.00010993,2]
[339487008,1727631048655,-500.0,0.00010993,2]
[339487009,1727631048665,-500.0,0.00010993,2]
[339487010,1727631048675,-871.61,0.00010993,2]
[339487011,1727631048685,-1278.4,0.00010993,2]
[339487012,1727631048696,-1599.48,0.00010993,2]
[339487013,1727631048706,-1599.48,0.00010993,2]
[339487014,1727631048716,-500.0,0.00010993,2]
[339487015,1727631048726,-4384.72,0.00010993,2]
[339487016,1727631048736,-3457.89,0.00010993,2]
[339487017,1727631048746,-500.0,0.00010993,2]
[339487018,1727631048756,-3850.08,0.00010993,2]
[339487019,1727631048766,-500.0,0.00010993,2]
[339487020,1727631048776,-500.0,0.00010993,2]
[339487021,1727631048786,-500.0,0.00010993,2]
[339487022,1727631048798,-500.0,0.00010993,2]
[339487023,1727631048809,-500.0,0.00010993,2]
[339487024,1727631048819,-500.0,0.00010993,2]
[339487025,1727631048831,-771.81,0.00010993,2]
[339487026,1727631048841,-771.81,0.00010993,2]
[339487027,1727631048851,-6997.38,0.00010993,2]
[339487028,1727631048861,-206.74981506,0.00010993,2]
[339487029,1727631048871,-500.0,0.00010994,2]
[339487030,1727631049233,-500.0,0.00010994,2]
[339487031,1727631049251,-683.96,0.00010994,2]
[339487032,1727631049261,-500.0,0.00010994,2]
[339487033,1727631049270,-681.21,0.00010994,2]
[339487034,1727631049280,-500.0,0.00010994,2]
[339487035,1727631049290,-500.0,0.00010994,2]
[339487036,1727631049300,-500.0,0.00010994,2]
[339487037,1727631049309,-500.0,0.00010994,2]
[339487038,1727631049319,-500.0,0.00010994,2]
[339487039,1727631049330,-500.0,0.00010994,2]
[339487040,1727631049339,-500.0,0.00010994,2]
[339487041,1727631049349,-500.0,0.00010994,2]
[339487042,1727631049358,-500.0,0.00010994,2]
[339487043,1727631049367,-500.0,0.00010994,2]
[339487044,1727631049377,-273.71714466,0.00010994,2]
[339487045,1727631049386,-500.0,0.00010994,2]
[339487046,1727631049395,-500.0,0.00010994,2]
[339487047,1727631049404,-500.0,0.00010994,2]
[339487048,1727631049413,-500.0,0.00010994,2]
[339487049,1727631049422,-500.0,0.00010994,2]
[339487050,1727631049431,-500.0,0.00010994,2]
[339487051,1727631049440,-500.0,0.00010994,2]
[339487052,1727631049450,-500.0,0.00010994,2]
[339487053,1727631049459,-500.0,0.00010994,2]
[339487054,1727631049468,-500.0,0.00010994,2]
[339487055,1727631049478,-500.0,0.00010994,2]
[339487056,1727631049487,-500.0,0.00010994,2]
[339487057,1727631049496,-500.0,0.00010994,2]
[339487058,1727631049505,-500.0,0.00010994,2]
[339487059,1727631049515,-500.0,0.00010994,2]
[339487060,1727631049524,-500.0,0.00010994,2]
[339487061,1727631049534,-500.0,0.00010994,2]
[339487062,1727631049547,-500.0,0.00010994,2]
[339487063,1727631049557,-500.0,0.00010994,2]
[339487064,1727631049566,-500.0,0.00010994,2]
[339487065,1727631049576,-500.0,0.00010994,2]
[339487066,1727631049585,-500.0,0.00010994,2]
[339487067,1727631049595,-500.0,0.00010994,2]
[339487068,1727631049604,-500.0,0.00010994,2]
[339487069,1727631049613,-500.0,0.00010994,2]
[339487070,1727631049622,-500.0,0.00010994,2]
[339487071,1727631049631,-500.0,0.00010994,2]
[339487072,1727631049641,-500.0,0.00010994,2]
[339487073,1727631049650,-500.0,0.00010994,2]
[339487074,1727631049659,-500.0,0.00010994,2]
[339487075,1727631049669,-896.1,0.00010994,2]
[339487076,1727631049679,-896.1,0.00010994,2]
[339487077,1727631049688,-896.1,0.00010994,2]
[339487078,1727631049698,-500.93547008,0.00010994,2]
[339487079,1727631049708,-729.01,0.00010994,2]
[339487080,1727631049717,-500.0,0.00010994,2]
[339487081,1727631049726,-500.0,0.00010994,2]
[339487082,1727631049736,-500.0,0.00010994,2]
[339487083,1727631049745,-672.68,0.00010994,2]
[339487084,1727631049754,-266.34344469,0.00010994,2]
[339487085,1727631049763,-516.8859496,0.00010994,2]
[339487086,1727631049773,-500.0,0.00010994,2]
[339487087,1727631049783,-500.0,0.00010994,2]
[339487088,1727631049794,-501.43904602,0.00010994,2]
[339487089,1727631049806,-500.0,0.00010994,2]
[339487090,1727631049816,-500.0,0.00010994,2]
[339487091,1727631049826,-500.0,0.00010994,2]
[339487092,1727631049835,-500.0,0.00010994,2]
[339487093,1727631049845,-500.0,0.00010994,2]
[339487094,1727631049855,-500.0,0.00010994,2]
[339487095,1727631049864,-525.02,0.00010994,2]
[339487096,1727631049874,-500.0,0.00010994,2]
[339487097,1727631049883,-500.0,0.00010994,2]
[339487098,1727631049894,-500.0,0.00010994,2]
[339487099,1727631049903,-628.79,0.00010994,2]
[339487100,1727631049914,-500.0,0.00010994,2]
[339487101,1727631049924,-500.0,0.00010994,2]
[339487102,1727631049936,-624.93,0.00010994,2]
[339487103,1727631049946,-502.17910273,0.00010994,2]
[339487104,1727631049957,-1938.83,0.00010994,2]
[339487105,1727631049968,-843.33,0.00010994,2]
[339487106,1727631049979,-500.0,0.00010994,2]
[339487107,1727631049989,-200.08042146,0.00010994,2]
[339487108,1727631049999,-500.0,0.00010994,2]
[339487109,1727631050008,-500.0,0.00010994,2]
[339487110,1727631050020,-500.0,0.00010994,2]
[339487111,1727631050029,-500.0,0.00010994,2]
[339487112,1727631050039,-500.0,0.00010994,2]
[339487113,1727631050050,-1732.04,0.00010994,2]
[339487114,1727631050059,-500.0,0.00010994,2]
[339487115,1727631050068,-504.4759603,0.00010994,2]
[339487116,1727631050079,-3552.56,0.00010994,2]
[339487117,1727631050088,-3552.56,0.00010994,2]
[339487118,1727631050098,-3552.56,0.00010994,2]
[339487119,1727631050109,-500.0,0.00010994,2]
[339487120,1727631050119,-755.29,0.00010994,2]
[339487121,1727631050129,-640.25,0.00010994,2]
[339487122,1727631050138,-640.25,0.00010994,2]
[339487123,1727631050148,-640.25,0.00010994,2]
[339487124,1727631050156,-995.48,0.00010994,2]
[339487125,1727631050164,-500.0,0.00010994,2]
[339487126,1727631050174,-1453.22,0.00010994,2]
[339487127,1727631050184,-1453.22,0.00010994,2]
[339487128,1727631050194,-1453.22,0.00010994,2]
[339487129,1727631050203,-500.0,0.00010994,2]
[339487130,1727631050213,-500.0,0.00010994,2]
[339487131,1727631050223,-500.0,0.00010994,2]
[339487132,1727631050232,-500.0,0.00010994,2]
[339487133,1727631050242,-500.0,0.00010994,2]
[339487134,1727631050251,-500.0,0.00010994,2]
[339487135,1727631050261,-500.0,0.00010994,2]
[339487136,1727631050270,-577.04,0.00010994,2]
[339487137,1727631050281,-500.0,0.00010994,2]
[339487138,1727631050290,-500.0,0.00010994,2]
[339487139,1727631050300,-877.13,0.00010994,2]
[339487140,1727631050310,-877.13,0.00010994,2]
[339487141,1727631050320,-877.13,0.00010994,2]
[339487142,1727631050329,-1296.02,0.00010994,2]
[339487143,1727631050339,-1296.02,0.00010994,2]
[339487144,1727631050349,-1296.02,0.00010994,2]
[339487145,1727631050358,-613.24,0.00010994,2]
[339487146,1727631050368,-500.0,0.00010994,2]
[339487147,1727631050378,-500.0,0.00010994,2]
[339487148,1727631050387,-500.0,0.00010994,2]
[339487149,1727631050397,-500.0,0.00010994,2]
[339487150,1727631050407,-500.0,0.00010994,2]
[339487151,1727631050417,-500.0,0.00010994,2]
[339487152,1727631050426,-6509.18,0.00010994,2]
[339487153,1727631050435,-6509.18,0.00010994,2]
[339487154,1727631050445,-6509.18,0.00010994,2]
[339487155,1727631050455,-2202.61,0.00010994,2]
[339487156,1727631050464,-1375.32,0.00010994,2]
[339487157,1727631050474,-1375.32,0.00010994,2]
[339487158,1727631050483,-1375.32,0.00010994,2]
[339487159,1727631050493,-500.0,0.00010994,2]
[339487160,1727631050502,-500.0,0.00010994,2]
[339487161,1727631050512,-563.56,0.00010994,2]
[339487162,1727631050521,-500.0,0.00010994,2]
[339487163,1727631050531,-500.0,0.00010994,2]
[339487164,1727631050541,-500.0,0.00010994,2]
[339487165,1727631050551,-500.0,0.00010994,2]
[339487166,1727631050560,-500.0,0.00010994,2]
[339487167,1727631050570,-1048.72,0.00010994,2]
[339487168,1727631050581,-500.0,0.00010994,2]
[339487169,1727631050590,-500.0,0.00010994,2]
[339487170,1727631050600,-4934.96,0.00010994,2]
[339487171,1727631050610,-500.0,0.00010994,2]
[339487172,1727631050620,-4934.96,0.00010994,2]
[339487173,1727631050629,-4934.96,0.00010994,2]
[339487174,1727631050639,-500.0,0.00010994,2]
[339487175,1727631050649,-3259.0,0.00010994,2]
[339487176,1727631050659,-3259.0,0.00010994,2]
[339487177,1727631050668,-3259.0,0.00010994,2]
[339487178,1727631050678,-500.6830987,0.00010994,2]
[339487179,1727631050688,-2007.39,0.00010994,2]
[339487180,1727631050697,-500.0,0.00010994,2]
[339487181,1727631050707,-3621.32,0.00010994,2]
[339487182,1727631050716,-3621.32,0.00010994,2]
[339487183,1727631050726,-500.0,0.00010994,2]
[339487184,1727631050736,-3621.32,0.00010994,2]
[339487185,1727631050745,-500.0,0.00010994,2]
[339487186,1727631050755,-500.0,0.00010994,2]
[339487187,1727631050764,-1243.76,0.00010994,2]
[339487188,1727631050773,-500.0,0.00010994,2]
[339487189,1727631050783,-500.0,0.00010994,2]
[339487190,1727631050792,-3868.12,0.00010994,2]
[339487191,1727631050806,-3868.12,0.00010994,2]
[339487192,1727631050816,-3868.12,0.00010994,2]
[339487193,1727631050826,-645.99,0.00010994,2]
[339487194,1727631050836,-1140.73,0.00010994,2]
[339487195,1727631050846,-500.0,0.00010994,2]
[339487196,1727631050856,-500.0,0.00010994,2]
[339487197,1727631050865,-545.62,0.00010994,2]
[339487198,1727631050875,-500.0,0.00010994,2]
[339487199,1727631050886,-853.02,0.00010994,2]
[339487200,1727631050895,-500.0,0.00010994,2]
[339487201,1727631050905,-500.0,0.00010994,2]
[339487202,1727631050914,-500.0,0.00010994,2]
[339487203,1727631050923,-500.0,0.00010994,2]
[339487204,1727631050933,-500.0,0.00010994,2]
[339487205,1727631050942,-500.0,0.00010994,2]
[339487206,1727631050952,-500.0,0.00010994,2]
[339487207,1727631050962,-500.0,0.00010994,2]
[339487208,1727631050972,-502.58966747,0.00010994,2]
[339487209,1727631050981,-500.0,0.00010994,2]
[339487210,1727631050990,-420.28711599,0.00010994,2]
[339487211,1727631051000,-500.0,0.00010994,2]
[339487212,1727631051010,-500.0,0.00010994,2]
[339487213,1727631051019,-500.0,0.00010994,2]
[339487214,1727631051028,-4782.77,0.00010994,2]
[339487215,1727631051038,-4782.77,0.00010994,2]
[339487216,1727631051047,-4782.77,0.00010994,2]
[339487217,1727631051056,-500.0,0.00010994,2]
[339487218,1727631051065,-4465.88,0.00010994,2]
[339487219,1727631051075,-4465.88,0.00010994,2]
[339487220,1727631051085,-500.0,0.00010994,2]
[339487221,1727631051094,-500.0,0.00010994,2]
[339487222,1727631051103,-4465.88,0.00010994,2]
[339487223,1727631051113,-500.0,0.00010994,2]
[339487224,1727631051122,-500.0,0.00010994,2]
[339487225,1727631051132,-500.0,0.00010994,2]
[339487226,1727631051141,-2632.26,0.00010994,2]
[339487227,1727631051150,-500.0,0.00010994,2]
[339487228,1727631051160,-500.0,0.00010994,2]
[339487229,1727631051170,-500.0,0.00010994,2]
[339487230,1727631051179,-500.0,0.00010994,2]
[339487231,1727631051188,-1647.0,0.00010994,2]
[339487232,1727631051198,-1647.0,0.00010994,2]
[339487233,1727631051208,-500.0,0.00010994,2]
[339487234,1727631051217,-1647.0,0.00010994,2]
[339487235,1727631051227,-500.0,0.00010994,2]
[339487236,1727631051237,-500.0,0.00010994,2]
[339487237,1727631051246,-500.0,0.00010994,2]
[339487238,1727631051256,-500.0,0.00010994,2]